[Event "Titled Tuesday Blitz February 07 Late 2023"]
[White "Fajdetic, Hrvoje"]
[Black "Koellner, Ruben Gideon"]
[WhiteFideId "14501945"]
[BlackFideId "12993093"]
[WhiteElo "2151"]
[BlackElo "2426"]
[Result "0-1"]
[Round "01"]
[TimeControl "180+2"]
[Date "2023.02.07"]
[WhiteClock "0:00:13"]
[BlackClock "0:00:10"]

1. d4 {[%clk 0:03:00]}  d6 {[%clk 0:02:40]} 2. Nc3 {[%clk 0:02:58]}  Nf6 {[%clk 0:02:37]} 3. e4 {[%clk 0:02:57]}  e5 {[%clk 0:02:37]} 4. Nge2 {[%clk 0:02:43]}  Nc6 {[%clk 0:02:35]} 5. f3 {[%clk 0:02:42]}  exd4 {[%clk 0:02:25]} 6. Nxd4 {[%clk 0:02:41]}  d5 {[%clk 0:02:25]} 7. Bb5 {[%clk 0:02:32]}  Qd6 {[%clk 0:01:55]} 8. exd5 {[%clk 0:02:16]}  Nxd5 {[%clk 0:00:36]} 9. Nxc6 {[%clk 0:02:13]}  Nxc3 {[%clk 0:00:33]} 10. Qxd6 {[%clk 0:02:07]}  Bxd6 {[%clk 0:00:26]} 11. bxc3 {[%clk 0:02:06]}  a6 {[%clk 0:00:23]} 12. Ba4 {[%clk 0:01:45]}  Bd7 {[%clk 0:00:22]} 13. O-O {[%clk 0:01:33]}  Bxc6 {[%clk 0:00:21]} 14. Re1+ {[%clk 0:01:31]}  Kd7 {[%clk 0:00:19]} 15. Bb3 {[%clk 0:01:29]}  Rhe8 {[%clk 0:00:06]} 16. Bg5 {[%clk 0:01:17]}  f6 {[%clk 0:00:06]} 17. Bh4 {[%clk 0:01:17]}  Rxe1+ {[%clk 0:00:05]} 18. Rxe1 {[%clk 0:01:16]}  Re8 {[%clk 0:00:06]} 19. Rxe8 {[%clk 0:01:10]}  Kxe8 {[%clk 0:00:07]} 20. Kf2 {[%clk 0:01:07]}  Be5 {[%clk 0:00:06]} 21. c4 {[%clk 0:01:05]}  Ke7 {[%clk 0:00:06]} 22. h3 {[%clk 0:01:02]}  Kd6 {[%clk 0:00:05]} 23. Ke2 {[%clk 0:01:01]}  Kc5 {[%clk 0:00:05]} 24. Be1 {[%clk 0:01:01]}  b6 {[%clk 0:00:04]} 25. Kd3 {[%clk 0:00:58]}  Bd7 {[%clk 0:00:03]} 26. a3 {[%clk 0:00:56]}  Bf5+ {[%clk 0:00:03]} 27. Ke2 {[%clk 0:00:53]}  a5 {[%clk 0:00:04]} 28. g4 {[%clk 0:00:50]}  Bg6 {[%clk 0:00:04]} 29. Bf2+ {[%clk 0:00:49]}  Bd4 {[%clk 0:00:04]} 30. Bg3 {[%clk 0:00:47]}  c6 {[%clk 0:00:05]} 31. Bc7 {[%clk 0:00:45]}  Bb2 {[%clk 0:00:04]} 32. a4 {[%clk 0:00:41]}  Be5 {[%clk 0:00:05]} 33. Bd8 {[%clk 0:00:40]}  Bd6 {[%clk 0:00:05]} 34. Ke3 {[%clk 0:00:38]}  h6 {[%clk 0:00:05]} 35. f4 {[%clk 0:00:30]}  Bf7 {[%clk 0:00:05]} 36. g5 {[%clk 0:00:27]}  hxg5 {[%clk 0:00:04]} 37. fxg5 {[%clk 0:00:27]}  fxg5 {[%clk 0:00:05]} 38. Bxg5 {[%clk 0:00:23]}  Bxc4 {[%clk 0:00:05]} 39. Kd2 {[%clk 0:00:14]}  Bxb3 {[%clk 0:00:05]} 40. cxb3 {[%clk 0:00:13]}  Kd5 {[%clk 0:00:05]} 41. Kd3 {[%clk 0:00:13]}  b5 {[%clk 0:00:05]} 42. Bd8 {[%clk 0:00:12]}  Bb4 {[%clk 0:00:05]} 43. h4 {[%clk 0:00:10]}  bxa4 {[%clk 0:00:05]} 44. bxa4 {[%clk 0:00:10]}  c5 {[%clk 0:00:06]} 45. h5 {[%clk 0:00:10]}  c4+ {[%clk 0:00:07]} 46. Kc2 {[%clk 0:00:10]}  Ke6 {[%clk 0:00:07]} 47. Bg5 {[%clk 0:00:08]}  Kf5 {[%clk 0:00:07]} 48. Bc1 {[%clk 0:00:08]}  Kg4 {[%clk 0:00:06]} 49. h6 {[%clk 0:00:08]}  gxh6 {[%clk 0:00:07]} 50. Bxh6 {[%clk 0:00:08]}  Kf5 {[%clk 0:00:08]} 51. Bd2 {[%clk 0:00:08]}  Bxd2 {[%clk 0:00:07]} 52. Kxd2 {[%clk 0:00:09]}  Ke4 {[%clk 0:00:08]} 53. Kc3 {[%clk 0:00:10]}  Kd5 {[%clk 0:00:08]} 54. Kc2 {[%clk 0:00:10]}  Kd4 {[%clk 0:00:08]} 55. Kb2 {[%clk 0:00:11]}  Kd3 {[%clk 0:00:08]} 56. Ka3 {[%clk 0:00:12]}  c3 {[%clk 0:00:08]} 57. Ka2 {[%clk 0:00:12]}  c2 {[%clk 0:00:08]} 58. Kb2 {[%clk 0:00:12]}  Kd2 {[%clk 0:00:09]} 59. Ka2 {[%clk 0:00:13]}  c1=Q {[%clk 0:00:10]} 0-1


[Site "https://www.chess.com"]

[Event "Titled Tuesday Blitz February 07 Late 2023"]
[White "Diaz Perez, Michel Alejandro"]
[Black "Jeziel_Vale"]
[WhiteFideId "3517179"]
[WhiteElo "2414"]
[BlackElo "2276"]
[Result "1-0"]
[Round "01"]
[TimeControl "180+2"]
[Date "2023.02.07"]
[WhiteClock "0:01:11"]
[BlackClock "0:00:08"]

1. Nf3 {[%clk 0:02:57]}  Nf6 {[%clk 0:02:58]} 2. c4 {[%clk 0:02:57]}  g6 {[%clk 0:02:58]} 3. b3 {[%clk 0:02:55]}  Bg7 {[%clk 0:02:58]} 4. Bb2 {[%clk 0:02:56]}  O-O {[%clk 0:02:58]} 5. g3 {[%clk 0:02:56]}  d6 {[%clk 0:02:59]} 6. d4 {[%clk 0:02:56]}  Nbd7 {[%clk 0:02:46]} 7. Bg2 {[%clk 0:02:56]}  e5 {[%clk 0:02:47]} 8. O-O {[%clk 0:02:53]}  c6 {[%clk 0:02:42]} 9. dxe5 {[%clk 0:02:51]}  Ng4 {[%clk 0:02:42]} 10. Nc3 {[%clk 0:02:48]}  Ndxe5 {[%clk 0:02:29]} 11. Nxe5 {[%clk 0:02:46]}  Nxe5 {[%clk 0:02:30]} 12. Qd2 {[%clk 0:02:44]}  Qe7 {[%clk 0:02:25]} 13. Rad1 {[%clk 0:02:42]}  Rd8 {[%clk 0:02:25]} 14. h3 {[%clk 0:02:40]}  f5 {[%clk 0:02:05]} 15. e4 {[%clk 0:02:36]}  Be6 {[%clk 0:01:59]} 16. f4 {[%clk 0:02:29]}  Nf7 {[%clk 0:01:56]} 17. Rfe1 {[%clk 0:02:28]}  Qc7 {[%clk 0:01:52]} 18. Kh2 {[%clk 0:02:25]}  h5 {[%clk 0:01:45]} 19. exf5 {[%clk 0:02:17]}  Bxf5 {[%clk 0:01:44]} 20. Ne4 {[%clk 0:02:18]}  Bxe4 {[%clk 0:01:39]} 21. Bxe4 {[%clk 0:02:16]}  h4 {[%clk 0:01:30]} 22. gxh4 {[%clk 0:02:15]}  Bxb2 {[%clk 0:01:18]} 23. Qxb2 {[%clk 0:02:13]}  d5 {[%clk 0:01:19]} 24. cxd5 {[%clk 0:01:55]}  Qxf4+ {[%clk 0:01:19]} 25. Kh1 {[%clk 0:01:56]}  Qxh4 {[%clk 0:01:05]} 26. Qg2 {[%clk 0:01:32]}  g5 {[%clk 0:00:33]} 27. dxc6 {[%clk 0:01:27]}  bxc6 {[%clk 0:00:26]} 28. Bxc6 {[%clk 0:01:23]}  Rac8 {[%clk 0:00:25]} 29. Bd5 {[%clk 0:01:22]}  Rxd5 {[%clk 0:00:21]} 30. Qxd5 {[%clk 0:01:22]}  Qxh3+ {[%clk 0:00:21]} 31. Kg1 {[%clk 0:01:21]}  Rc2 {[%clk 0:00:19]} 32. Rd2 {[%clk 0:01:16]}  Qg3+ {[%clk 0:00:17]} 33. Kf1 {[%clk 0:01:17]}  Qf4+ {[%clk 0:00:13]} 34. Ke2 {[%clk 0:01:16]}  Qh2+ {[%clk 0:00:09]} 35. Kd1 {[%clk 0:01:13]}  Rxd2+ {[%clk 0:00:08]} 36. Qxd2 {[%clk 0:01:14]}  Qxd2+ {[%clk 0:00:09]} 37. Kxd2 {[%clk 0:01:13]}  Kg7 {[%clk 0:00:10]} 38. Re7 {[%clk 0:01:12]}  g4 {[%clk 0:00:09]} 39. Rxa7 {[%clk 0:01:11]}  Kg6 {[%clk 0:00:10]} 40. Rxf7 {[%clk 0:01:10]}  Kxf7 {[%clk 0:00:10]} 41. Ke3 {[%clk 0:01:11]}  Ke6 {[%clk 0:00:08]} 42. Kf4 {[%clk 0:01:11]} 1-0


[Site "https://www.chess.com"]

[Event "Titled Tuesday Blitz February 07 Late 2023"]
[White "Vaglio Munoz, Jaime"]
[Black "Olenik Campa, Rudi"]
[WhiteFideId "6500145"]
[BlackFideId "14633264"]
[WhiteElo "2174"]
[BlackElo "2356"]
[Result "0-1"]
[Round "01"]
[TimeControl "180+2"]
[Date "2023.02.07"]
[WhiteClock "0:00:02"]
[BlackClock "0:00:09"]

1. d4 {[%clk 0:02:59]}  e6 {[%clk 0:02:57]} 2. g3 {[%clk 0:02:58]}  c5 {[%clk 0:02:56]} 3. c3 {[%clk 0:02:57]}  Nf6 {[%clk 0:02:54]} 4. Bg2 {[%clk 0:02:57]}  Nc6 {[%clk 0:02:54]} 5. e4 {[%clk 0:02:55]}  d5 {[%clk 0:02:53]} 6. e5 {[%clk 0:02:55]}  Nd7 {[%clk 0:02:53]} 7. f4 {[%clk 0:02:53]}  Qb6 {[%clk 0:02:50]} 8. Nf3 {[%clk 0:02:53]}  Be7 {[%clk 0:02:50]} 9. a3 {[%clk 0:02:47]}  f6 {[%clk 0:02:50]} 10. b4 {[%clk 0:02:44]}  cxd4 {[%clk 0:02:49]} 11. cxd4 {[%clk 0:02:43]}  O-O {[%clk 0:02:49]} 12. Qd3 {[%clk 0:02:15]}  fxe5 {[%clk 0:02:31]} 13. fxe5 {[%clk 0:02:16]}  Ndxe5 {[%clk 0:01:21]} 14. dxe5 {[%clk 0:02:07]}  Nxe5 {[%clk 0:01:20]} 15. Nxe5 {[%clk 0:01:44]}  Qf2+ {[%clk 0:01:16]} 16. Kd1 {[%clk 0:01:43]}  Qxg2 {[%clk 0:01:17]} 17. Re1 {[%clk 0:01:42]}  Qxh2 {[%clk 0:00:59]} 18. Nc3 {[%clk 0:01:41]}  Bf6 {[%clk 0:00:50]} 19. Ra2 {[%clk 0:01:41]}  Qh5+ {[%clk 0:00:44]} 20. Qe2 {[%clk 0:01:32]}  Qh3 {[%clk 0:00:40]} 21. Qe3 {[%clk 0:01:20]}  d4 {[%clk 0:00:37]} 22. Qxd4 {[%clk 0:01:17]}  Rd8 {[%clk 0:00:35]} 23. Qxd8+ {[%clk 0:00:59]}  Bxd8 {[%clk 0:00:36]} 24. Re3 {[%clk 0:00:49]}  Bf6 {[%clk 0:00:29]} 25. Ne2 {[%clk 0:00:38]}  b6 {[%clk 0:00:26]} 26. b5 {[%clk 0:00:31]}  Bb7 {[%clk 0:00:25]} 27. Rd2 {[%clk 0:00:31]}  Bd5 {[%clk 0:00:23]} 28. Nf4 {[%clk 0:00:29]}  Qf1+ {[%clk 0:00:22]} 29. Re1 {[%clk 0:00:28]}  Qxb5 {[%clk 0:00:22]} 30. Nxd5 {[%clk 0:00:27]}  exd5 {[%clk 0:00:22]} 31. Bb2 {[%clk 0:00:26]}  Qb3+ {[%clk 0:00:21]} 32. Kc1 {[%clk 0:00:25]}  Rc8+ {[%clk 0:00:22]} 33. Kb1 {[%clk 0:00:25]}  d4 {[%clk 0:00:21]} 34. Nd3 {[%clk 0:00:24]}  Qc4 {[%clk 0:00:18]} 35. Rc1 {[%clk 0:00:23]}  Qe6 {[%clk 0:00:17]} 36. Re1 {[%clk 0:00:22]}  Qf5 {[%clk 0:00:16]} 37. Ka1 {[%clk 0:00:21]}  a5 {[%clk 0:00:15]} 38. Ree2 {[%clk 0:00:21]}  b5 {[%clk 0:00:15]} 39. Rf2 {[%clk 0:00:21]}  Qg6 {[%clk 0:00:15]} 40. Nf4 {[%clk 0:00:20]}  Qf5 {[%clk 0:00:14]} 41. Nd3 {[%clk 0:00:18]}  Qh5 {[%clk 0:00:14]} 42. Rg2 {[%clk 0:00:18]}  Qh1+ {[%clk 0:00:14]} 43. Ka2 {[%clk 0:00:18]}  b4 {[%clk 0:00:14]} 44. axb4 {[%clk 0:00:18]}  axb4 {[%clk 0:00:15]} 45. Kb3 {[%clk 0:00:18]}  Qh5 {[%clk 0:00:13]} 46. Nxb4 {[%clk 0:00:17]}  Qf7+ {[%clk 0:00:12]} 47. Ka4 {[%clk 0:00:14]}  Ra8+ {[%clk 0:00:13]} 48. Kb5 {[%clk 0:00:13]}  Qb7+ {[%clk 0:00:12]} 49. Kc4 {[%clk 0:00:13]}  Rc8+ {[%clk 0:00:13]} 50. Kb3 {[%clk 0:00:12]}  Qf3+ {[%clk 0:00:12]} 51. Ka4 {[%clk 0:00:11]}  Ra8+ {[%clk 0:00:11]} 52. Kb5 {[%clk 0:00:11]}  Qf1+ {[%clk 0:00:12]} 53. Rge2 {[%clk 0:00:08]}  Rb8+ {[%clk 0:00:11]} 54. Kc4 {[%clk 0:00:08]}  d3 {[%clk 0:00:12]} 55. Nxd3 {[%clk 0:00:06]}  Bxb2 {[%clk 0:00:11]} 56. Rxb2 {[%clk 0:00:03]}  Rxb2 {[%clk 0:00:09]} 57. Rxb2 {[%clk 0:00:03]}  Qf7+ {[%clk 0:00:08]} 58. Kc3 {[%clk 0:00:03]}  h6 {[%clk 0:00:09]} 59. Rb8+ {[%clk 0:00:01]}  Kh7 {[%clk 0:00:09]} 60. Rb4 {[%clk 0:00:02]}  Qf6+ {[%clk 0:00:09]} 61. Kd2 {[%clk 0:00:01]}  h5 {[%clk 0:00:09]} 62. Rf4 {[%clk 0:00:02]}  Qg5 {[%clk 0:00:09]} 0-1


[Site "https://www.chess.com"]

[Event "Titled Tuesday Blitz February 07 Late 2023"]
[White "Aldokhin, Ivan"]
[Black "Stolz, Mike"]
[WhiteFideId "24115720"]
[BlackFideId "4617134"]
[WhiteElo "2413"]
[BlackElo "2330"]
[Result "1-0"]
[Round "01"]
[TimeControl "180+2"]
[Date "2023.02.07"]
[WhiteClock "0:01:00"]
[BlackClock "0:01:21"]

1. e4 {[%clk 0:02:52]}  c5 {[%clk 0:02:59]} 2. Nf3 {[%clk 0:02:50]}  e6 {[%clk 0:02:58]} 3. d4 {[%clk 0:02:50]}  c4 {[%clk 0:02:59]} 4. Bxc4 {[%clk 0:02:49]}  d5 {[%clk 0:02:57]} 5. exd5 {[%clk 0:02:48]}  exd5 {[%clk 0:02:58]} 6. Bb5+ {[%clk 0:02:45]}  Bd7 {[%clk 0:02:56]} 7. Bxd7+ {[%clk 0:02:42]}  Nxd7 {[%clk 0:02:57]} 8. O-O {[%clk 0:02:40]}  Ngf6 {[%clk 0:02:58]} 9. Re1+ {[%clk 0:02:38]}  Be7 {[%clk 0:02:58]} 10. Qe2 {[%clk 0:02:38]}  Ne4 {[%clk 0:02:57]} 11. Nbd2 {[%clk 0:02:36]}  Ndf6 {[%clk 0:02:57]} 12. Qb5+ {[%clk 0:02:29]}  Qd7 {[%clk 0:02:50]} 13. Qxd7+ {[%clk 0:02:29]}  Kxd7 {[%clk 0:02:45]} 14. Nxe4 {[%clk 0:02:28]}  Nxe4 {[%clk 0:02:41]} 15. Ne5+ {[%clk 0:02:27]}  Ke8 {[%clk 0:02:41]} 16. f3 {[%clk 0:02:25]}  Nd6 {[%clk 0:02:33]} 17. Nd3 {[%clk 0:02:17]}  f6 {[%clk 0:02:31]} 18. Nf4 {[%clk 0:02:12]}  Nf5 {[%clk 0:02:06]} 19. Nxd5 {[%clk 0:02:05]}  Rd8 {[%clk 0:02:04]} 20. Nxe7 {[%clk 0:01:58]}  Nxe7 {[%clk 0:02:05]} 21. Be3 {[%clk 0:01:46]}  Kf7 {[%clk 0:02:05]} 22. c4 {[%clk 0:01:43]}  Nf5 {[%clk 0:02:04]} 23. Rad1 {[%clk 0:01:42]}  Rhe8 {[%clk 0:02:02]} 24. Kf2 {[%clk 0:01:39]}  Re7 {[%clk 0:01:51]} 25. g4 {[%clk 0:01:34]}  Nxe3 {[%clk 0:01:46]} 26. Rxe3 {[%clk 0:01:34]}  Red7 {[%clk 0:01:44]} 27. d5 {[%clk 0:01:28]}  Rc7 {[%clk 0:01:43]} 28. b3 {[%clk 0:01:26]}  a6 {[%clk 0:01:42]} 29. d6 {[%clk 0:01:15]}  Rc6 {[%clk 0:01:41]} 30. Re7+ {[%clk 0:01:14]}  Kg6 {[%clk 0:01:41]} 31. d7 {[%clk 0:01:09]}  Rc7 {[%clk 0:01:37]} 32. Ke3 {[%clk 0:01:04]}  f5 {[%clk 0:01:21]} 33. Rd6+ {[%clk 0:01:00]} 1-0


[Site "https://www.chess.com"]

[Event "Titled Tuesday Blitz February 07 Late 2023"]
[White "Zampronha, Wladimir Camilo"]
[Black "Ladan, Nicholas"]
[WhiteFideId "2103087"]
[BlackFideId "30918855"]
[WhiteElo "2176"]
[BlackElo "2228"]
[Result "0-1"]
[Round "01"]
[TimeControl "180+2"]
[Date "2023.02.07"]
[WhiteClock "0:00:09"]
[BlackClock "0:00:10"]

1. e4 {[%clk 0:03:00]}  e5 {[%clk 0:02:59]} 2. Nf3 {[%clk 0:03:01]}  Nc6 {[%clk 0:02:58]} 3. d4 {[%clk 0:03:01]}  exd4 {[%clk 0:02:57]} 4. Nxd4 {[%clk 0:03:02]}  Bc5 {[%clk 0:02:58]} 5. Be3 {[%clk 0:03:02]}  Qf6 {[%clk 0:02:55]} 6. c3 {[%clk 0:03:02]}  Nge7 {[%clk 0:02:49]} 7. Bc4 {[%clk 0:03:02]}  b6 {[%clk 0:02:48]} 8. O-O {[%clk 0:03:00]}  O-O {[%clk 0:02:47]} 9. Qd2 {[%clk 0:02:46]}  Bb7 {[%clk 0:02:31]} 10. b4 {[%clk 0:02:46]}  Bxd4 {[%clk 0:02:26]} 11. cxd4 {[%clk 0:02:47]}  Rfd8 {[%clk 0:02:16]} 12. Nc3 {[%clk 0:02:46]}  Nxb4 {[%clk 0:02:12]} 13. Bg5 {[%clk 0:02:42]}  Qd6 {[%clk 0:02:08]} 14. Nb5 {[%clk 0:02:37]}  Qc6 {[%clk 0:01:44]} 15. Bxe7 {[%clk 0:02:19]}  Qxe4 {[%clk 0:01:44]} 16. f3 {[%clk 0:01:57]}  Qxe7 {[%clk 0:01:42]} 17. Rfe1 {[%clk 0:01:57]}  Qf8 {[%clk 0:01:42]} 18. Rac1 {[%clk 0:01:29]}  c6 {[%clk 0:01:34]} 19. Nc3 {[%clk 0:01:03]}  d5 {[%clk 0:01:33]} 20. Bf1 {[%clk 0:01:00]}  a5 {[%clk 0:01:31]} 21. Re5 {[%clk 0:00:57]}  Re8 {[%clk 0:01:19]} 22. Rce1 {[%clk 0:00:57]}  Rxe5 {[%clk 0:01:15]} 23. dxe5 {[%clk 0:00:58]}  Qc5+ {[%clk 0:01:13]} 24. Kh1 {[%clk 0:00:57]}  Re8 {[%clk 0:01:09]} 25. Na4 {[%clk 0:00:56]}  Qc2 {[%clk 0:01:05]} 26. Qxc2 {[%clk 0:00:57]}  Nxc2 {[%clk 0:01:06]} 27. Rc1 {[%clk 0:00:57]}  Ne3 {[%clk 0:01:05]} 28. Nxb6 {[%clk 0:00:53]}  Nxf1 {[%clk 0:01:04]} 29. Rxf1 {[%clk 0:00:54]}  Rxe5 {[%clk 0:01:04]} 30. Nd7 {[%clk 0:00:51]}  Re7 {[%clk 0:01:02]} 31. Nc5 {[%clk 0:00:50]}  Bc8 {[%clk 0:00:59]} 32. Rb1 {[%clk 0:00:51]}  Kf8 {[%clk 0:00:52]} 33. g4 {[%clk 0:00:51]}  Ke8 {[%clk 0:00:46]} 34. Rb6 {[%clk 0:00:49]}  h5 {[%clk 0:00:21]} 35. Rxc6 {[%clk 0:00:46]}  Kd8 {[%clk 0:00:20]} 36. Rd6+ {[%clk 0:00:44]}  Kc7 {[%clk 0:00:20]} 37. Rxd5 {[%clk 0:00:43]}  hxg4 {[%clk 0:00:21]} 38. fxg4 {[%clk 0:00:41]}  Bxg4 {[%clk 0:00:21]} 39. Kg2 {[%clk 0:00:38]}  Re3 {[%clk 0:00:19]} 40. Rg5 {[%clk 0:00:34]}  Bh3+ {[%clk 0:00:14]} 41. Kf2 {[%clk 0:00:34]}  Ra3 {[%clk 0:00:15]} 42. Rxg7 {[%clk 0:00:29]}  Kc6 {[%clk 0:00:13]} 43. Nd3 {[%clk 0:00:25]}  Rxa2+ {[%clk 0:00:13]} 44. Kg1 {[%clk 0:00:23]}  Be6 {[%clk 0:00:13]} 45. Nf4 {[%clk 0:00:20]}  a4 {[%clk 0:00:13]} 46. h4 {[%clk 0:00:20]}  Rb2 {[%clk 0:00:10]} 47. Nxe6 {[%clk 0:00:14]}  fxe6 {[%clk 0:00:10]} 48. Ra7 {[%clk 0:00:15]}  Rb4 {[%clk 0:00:09]} 49. h5 {[%clk 0:00:11]}  Rh4 {[%clk 0:00:09]} 50. Kg2 {[%clk 0:00:09]}  Kb5 {[%clk 0:00:09]} 51. Rh7 {[%clk 0:00:06]}  a3 {[%clk 0:00:09]} 52. Kg3 {[%clk 0:00:07]}  Rh1 {[%clk 0:00:09]} 53. Kg2 {[%clk 0:00:07]}  a2 {[%clk 0:00:09]} 54. Kxh1 {[%clk 0:00:07]}  a1=Q+ {[%clk 0:00:09]} 55. Kh2 {[%clk 0:00:08]}  Qb2+ {[%clk 0:00:09]} 56. Kh1 {[%clk 0:00:08]}  Qb1+ {[%clk 0:00:09]} 57. Kh2 {[%clk 0:00:09]}  Qxh7 {[%clk 0:00:10]} 0-1


[Site "https://www.chess.com"]

[Event "Titled Tuesday Blitz February 07 Late 2023"]
[White "Sielecki, Christof"]
[Black "Barash, Anton"]
[WhiteFideId "4620437"]
[BlackFideId "30935229"]
[WhiteElo "2419"]
[BlackElo "2074"]
[Result "1-0"]
[Round "01"]
[TimeControl "180+2"]
[Date "2023.02.07"]
[WhiteClock "0:02:24"]
[BlackClock "0:01:12"]

1. e4 {[%clk 0:03:00]}  e6 {[%clk 0:02:46]} 2. d4 {[%clk 0:03:00]}  d5 {[%clk 0:02:47]} 3. Nd2 {[%clk 0:03:00]}  Be7 {[%clk 0:02:46]} 4. Bd3 {[%clk 0:02:57]}  c5 {[%clk 0:02:45]} 5. dxc5 {[%clk 0:02:52]}  Nf6 {[%clk 0:02:43]} 6. Qe2 {[%clk 0:02:52]}  O-O {[%clk 0:02:39]} 7. Ngf3 {[%clk 0:02:49]}  a5 {[%clk 0:02:33]} 8. c3 {[%clk 0:02:49]}  Na6 {[%clk 0:02:30]} 9. e5 {[%clk 0:02:47]}  Nd7 {[%clk 0:02:29]} 10. h4 {[%clk 0:02:48]}  Ndxc5 {[%clk 0:01:57]} 11. Bxh7+ {[%clk 0:02:46]}  Kxh7 {[%clk 0:01:16]} 12. Ng5+ {[%clk 0:02:45]}  Kg8 {[%clk 0:01:13]} 13. Qh5 {[%clk 0:02:33]}  Bxg5 {[%clk 0:01:13]} 14. hxg5 {[%clk 0:02:29]}  Re8 {[%clk 0:01:12]} 15. Qh8# {[%clk 0:02:24]} 1-0


[Site "https://www.chess.com"]

[Event "Titled Tuesday Blitz February 07 Late 2023"]
[White "Karas, Marek"]
[Black "Clawitter, Craig"]
[WhiteFideId "14928558"]
[BlackFideId "2023105"]
[WhiteElo "2227"]
[BlackElo "2050"]
[Result "0-1"]
[Round "01"]
[TimeControl "180+2"]
[Date "2023.02.07"]
[WhiteClock "0:01:42"]
[BlackClock "0:02:04"]

1. e4 {[%clk 0:02:59]}  e6 {[%clk 0:02:59]} 2. d4 {[%clk 0:02:59]}  d5 {[%clk 0:02:59]} 3. e5 {[%clk 0:02:57]}  c5 {[%clk 0:02:59]} 4. c3 {[%clk 0:02:57]}  Qb6 {[%clk 0:02:59]} 5. Nf3 {[%clk 0:02:57]}  Nc6 {[%clk 0:03:00]} 6. Bd3 {[%clk 0:02:56]}  cxd4 {[%clk 0:02:59]} 7. cxd4 {[%clk 0:02:56]}  Bd7 {[%clk 0:03:00]} 8. O-O {[%clk 0:02:39]}  Nxd4 {[%clk 0:02:58]} 9. Nxd4 {[%clk 0:02:40]}  Qxd4 {[%clk 0:02:59]} 10. Nc3 {[%clk 0:02:41]}  a6 {[%clk 0:02:57]} 11. Qe2 {[%clk 0:02:37]}  Ne7 {[%clk 0:02:54]} 12. Kh1 {[%clk 0:02:32]}  Nc6 {[%clk 0:02:52]} 13. f4 {[%clk 0:02:32]}  Nb4 {[%clk 0:02:48]} 14. Rd1 {[%clk 0:02:28]}  Bc5 {[%clk 0:02:44]} 15. Bxh7 {[%clk 0:02:02]}  Qf2 {[%clk 0:02:29]} 16. Qxf2 {[%clk 0:02:01]}  Bxf2 {[%clk 0:02:29]} 17. Bb1 {[%clk 0:02:01]}  Ke7 {[%clk 0:02:05]} 18. a3 {[%clk 0:01:47]}  Rxh2+ {[%clk 0:02:04]} 19. Kxh2 {[%clk 0:01:42]}  Rh8+ {[%clk 0:02:04]} 0-1


[Site "https://www.chess.com"]

[Event "Titled Tuesday Blitz February 07 Late 2023"]
[White "Ardila, Oscar Humberto"]
[Black "Sourath Biswas"]
[WhiteFideId "4404742"]
[BlackFideId "35091484"]
[WhiteElo "1982"]
[BlackElo "2281"]
[Result "0-1"]
[Round "01"]
[TimeControl "180+2"]
[Date "2023.02.07"]
[WhiteClock "0:01:21"]
[BlackClock "0:02:31"]

1. Nf3 {[%clk 0:02:55]}  Nf6 {[%clk 0:02:59]} 2. d4 {[%clk 0:02:55]}  g6 {[%clk 0:03:00]} 3. g3 {[%clk 0:02:55]}  Bg7 {[%clk 0:03:01]} 4. Bg2 {[%clk 0:02:56]}  O-O {[%clk 0:03:02]} 5. O-O {[%clk 0:02:56]}  d6 {[%clk 0:03:02]} 6. Bg5 {[%clk 0:02:52]}  c5 {[%clk 0:03:03]} 7. e3 {[%clk 0:02:50]}  Nc6 {[%clk 0:03:03]} 8. Bxf6 {[%clk 0:02:48]}  Bxf6 {[%clk 0:03:03]} 9. c3 {[%clk 0:02:48]}  Qb6 {[%clk 0:02:59]} 10. Qe2 {[%clk 0:02:46]}  a5 {[%clk 0:02:53]} 11. Na3 {[%clk 0:02:45]}  a4 {[%clk 0:02:53]} 12. Nc4 {[%clk 0:02:44]}  Qa6 {[%clk 0:02:53]} 13. Rfe1 {[%clk 0:02:39]}  b5 {[%clk 0:02:52]} 14. Ncd2 {[%clk 0:02:38]}  a3 {[%clk 0:02:51]} 15. b3 {[%clk 0:02:33]}  b4 {[%clk 0:02:51]} 16. Qxa6 {[%clk 0:02:30]}  Bxa6 {[%clk 0:02:52]} 17. cxb4 {[%clk 0:02:30]}  Nxb4 {[%clk 0:02:46]} 18. Rec1 {[%clk 0:02:10]}  Rac8 {[%clk 0:02:46]} 19. Nb1 {[%clk 0:01:56]}  cxd4 {[%clk 0:02:43]} 20. Rxc8 {[%clk 0:01:54]}  Rxc8 {[%clk 0:02:44]} 21. Nxa3 {[%clk 0:01:50]}  dxe3 {[%clk 0:02:43]} 22. Re1 {[%clk 0:01:43]}  exf2+ {[%clk 0:02:43]} 23. Kxf2 {[%clk 0:01:43]}  Nd3+ {[%clk 0:02:43]} 24. Kf1 {[%clk 0:01:42]}  Nxe1+ {[%clk 0:02:44]} 25. Kxe1 {[%clk 0:01:42]}  Rc1+ {[%clk 0:02:44]} 26. Kf2 {[%clk 0:01:42]}  Ra1 {[%clk 0:02:44]} 27. Nc4 {[%clk 0:01:35]}  Rxa2+ {[%clk 0:02:45]} 28. Kg1 {[%clk 0:01:35]}  Bxc4 {[%clk 0:02:42]} 29. bxc4 {[%clk 0:01:35]}  Rc2 {[%clk 0:02:40]} 30. Bf1 {[%clk 0:01:34]}  e6 {[%clk 0:02:37]} 31. h4 {[%clk 0:01:27]}  d5 {[%clk 0:02:36]} 32. cxd5 {[%clk 0:01:27]}  exd5 {[%clk 0:02:37]} 33. g4 {[%clk 0:01:27]}  h6 {[%clk 0:02:33]} 34. Bg2 {[%clk 0:01:25]}  d4 {[%clk 0:02:33]} 35. Ne1 {[%clk 0:01:24]}  Rc1 {[%clk 0:02:31]} 36. Kf1 {[%clk 0:01:21]}  Bxh4 {[%clk 0:02:31]} 0-1


[Site "https://www.chess.com"]

[Event "Titled Tuesday Blitz February 07 Late 2023"]
[White "Czopor, Maciej"]
[Black "Smith, Garrett L"]
[WhiteFideId "21805431"]
[BlackFideId "2024829"]
[WhiteElo "2385"]
[BlackElo "2047"]
[Result "1-0"]
[Round "01"]
[TimeControl "180+2"]
[Date "2023.02.07"]
[WhiteClock "0:00:42"]
[BlackClock "0:00:59"]

1. c4 {[%clk 0:02:57]}  c5 {[%clk 0:02:59]} 2. Nc3 {[%clk 0:02:56]}  Nc6 {[%clk 0:02:59]} 3. b3 {[%clk 0:02:56]}  g6 {[%clk 0:02:59]} 4. h4 {[%clk 0:02:56]}  Nf6 {[%clk 0:02:58]} 5. e3 {[%clk 0:02:54]}  Bg7 {[%clk 0:02:57]} 6. Bb2 {[%clk 0:02:54]}  d6 {[%clk 0:02:51]} 7. h5 {[%clk 0:02:53]}  Nxh5 {[%clk 0:02:48]} 8. Rxh5 {[%clk 0:02:52]}  gxh5 {[%clk 0:02:49]} 9. Qxh5 {[%clk 0:02:52]}  Be6 {[%clk 0:02:31]} 10. O-O-O {[%clk 0:02:52]}  Qd7 {[%clk 0:02:29]} 11. Be2 {[%clk 0:02:43]}  h6 {[%clk 0:02:13]} 12. Nf3 {[%clk 0:02:41]}  O-O-O {[%clk 0:02:02]} 13. d4 {[%clk 0:02:11]}  Bf5 {[%clk 0:01:55]} 14. dxc5 {[%clk 0:01:57]}  Bg6 {[%clk 0:01:55]} 15. Qh2 {[%clk 0:01:35]}  Nb4 {[%clk 0:01:43]} 16. a3 {[%clk 0:01:10]}  Bxc3 {[%clk 0:01:39]} 17. axb4 {[%clk 0:01:09]}  Bxb2+ {[%clk 0:01:36]} 18. Kxb2 {[%clk 0:01:10]}  Qe6 {[%clk 0:01:31]} 19. Nd4 {[%clk 0:00:56]}  Qf6 {[%clk 0:01:30]} 20. cxd6 {[%clk 0:00:52]}  Rxd6 {[%clk 0:01:26]} 21. Bg4+ {[%clk 0:00:52]}  Kb8 {[%clk 0:01:07]} 22. c5 {[%clk 0:00:52]}  e5 {[%clk 0:01:03]} 23. cxd6 {[%clk 0:00:52]}  exd4 {[%clk 0:01:03]} 24. d7+ {[%clk 0:00:51]}  Ka8 {[%clk 0:01:04]} 25. Rxd4 {[%clk 0:00:50]}  Rd8 {[%clk 0:01:01]} 26. Qc7 {[%clk 0:00:45]}  a6 {[%clk 0:00:59]} 27. Bf3 {[%clk 0:00:42]} 1-0


[Site "https://www.chess.com"]